fUSD/lending_fUSD_20260628
["ID","MTS","AMOUNT","RATE_DAILY","PERIOD"]
[426584424,1782633901000,150.0,0.00011847,2]
[426584425,1782633917000,-150.0,0.00012032,2]
[426584427,1782633917000,-562.85,0.00012089,2]
[426584426,1782633917000,-562.85,0.00012051,2]
[426584428,1782633917000,-109.33088254,0.00012089,2]
[426584429,1782633917000,-208.6184678,0.00012089,2]
[426584431,1782633917000,-3206.4,0.0001212,2]
[426584430,1782633917000,-208.6184678,0.0001212,2]
[426584432,1782633917000,-562.85,0.00012127,2]
[426584433,1782633917000,-721.87101282,0.0001215,2]
[426584437,1782633917000,-562.85,0.00012202,2]
[426584435,1782633917000,-562.85,0.00012165,2]
[426584434,1782633917000,-842.01,0.00012164,2]
[426584443,1782633917000,-216.54711319,0.00012268,2]
[426584442,1782633917000,-200.0,0.00012256,2]
[426584441,1782633917000,-186.60335032,0.0001225,2]
[426584444,1782633917000,-216.51692753,0.00012268,2]
[426584440,1782633917000,-189.723778,0.0001225,2]
[426584438,1782633917000,-166.66,0.0001222,2]
[426584436,1782633917000,-150.0,0.0001218,2]
[426584439,1782633917000,-562.85,0.0001224,2]
[426584447,1782633928000,-68.53821132,0.00012268,2]
[426584446,1782633928000,-150.0,0.00012026,2]
[426584448,1782633928000,-500.0,0.00012276,2]
[426584449,1782633928000,-180.18655649,0.00012276,2]
[426584453,1782633928000,-1000.0,0.0001235,2]
[426584451,1782633928000,-150.0,0.000123,2]
[426584450,1782633928000,-562.85,0.00012278,2]
[426584452,1782633928000,-562.85,0.00012316,2]
[426584459,1782633928000,-562.85,0.00012353,2]
[426584455,1782633928000,-1000.0,0.0001235,2]
[426584454,1782633928000,-1000.0,0.0001235,2]
[426584458,1782633928000,-1000.0,0.0001235,2]
[426584457,1782633928000,-1000.0,0.0001235,2]
[426584461,1782633928000,-154.0,0.00012421,2]
[426584460,1782633928000,-562.85,0.00012391,2]
[426584462,1782633928000,-308.64,0.00012426,2]
[426584463,1782633928000,-237.23523219,0.00012429,2]
[426584456,1782633928000,-1000.0,0.0001235,2]
[426584472,1782633941000,-562.85,0.00012505,2]
[426584471,1782633941000,-308.64,0.00012503,2]
[426584469,1782633941000,-562.85,0.00012467,2]
[426584470,1782633941000,-312.52221677,0.000125,2]
[426584465,1782633941000,-189.723778,0.00012268,2]
[426584466,1782633941000,-325.61476781,0.00012429,2]
[426584467,1782633941000,-187.05,0.00012461,2]
[426584464,1782633941000,-682.175308,0.0001202,2]
[426584468,1782633941000,-166.66,0.00012462,2]
[426584474,1782633941000,-308.64,0.00012579,2]
[426584473,1782633941000,-562.85,0.00012542,2]
[426584475,1782633941000,-562.85,0.0001258,2]
[426584478,1782633941000,-562.85,0.00012656,2]
[426584477,1782633941000,-150.29425508,0.00012656,2]
[426584480,1782633941000,-160.0,0.00012657,2]
[426584479,1782633941000,-308.64,0.00012656,2]
[426584481,1782633941000,-150.0,0.00012693,2]
[426584484,1782633941000,-150.0,0.00012732,2]
[426584482,1782633941000,-562.85,0.00012693,2]
[426584485,1782633941000,-308.64,0.00012732,2]
[426584483,1782633941000,-166.66,0.00012704,2]
[426584476,1782633941000,-562.85,0.00012618,2]
[426584488,1782633958000,-8156.27163189,0.00012947,2]
[426584487,1782633958000,-308.64,0.00012885,2]
[426584486,1782633958000,-308.64,0.00012809,2]
[426584489,1782634006000,-176.50496579,0.00012938,2]
[426584490,1782634047000,-421.65211253,0.00012647,2]
[426584491,1782634140000,-392.37503958,0.00012164,2]
[426584493,1782634140000,-1895.61,0.00012495,2]
[426584492,1782634140000,-624.98,0.00012444,2]
[426584494,1782634140000,-782.48293369,0.00012504,2]
[426584496,1782634140000,-12.69697375,0.00012504,2]
[426584495,1782634140000,-1125.18009256,0.00012504,2]
[426584498,1782634140000,-1405.54788747,0.00012647,2]
[426584499,1782634140000,-216.54711319,0.00012656,2]
[426584500,1782634140000,-160.0,0.00012656,2]
[426584501,1782634140000,-285.05513885,0.00012656,2]
[426584502,1782634140000,-1.94473665,0.00012702,2]
[426584497,1782634140000,-1613.65612336,0.00012602,2]
[426584504,1782634145000,-389.53649519,0.00012938,2]
[426584505,1782634145000,-266.07836811,0.00012947,2]
[426584503,1782634145000,-1056.05526335,0.00012702,2]
[426584506,1782634145000,-308.64,0.00012962,2]
[426584507,1782634145000,-1827.2,0.00012964,2]
[426584508,1782634145000,-896.59702432,0.00013,2]
[426584509,1782634145000,-4294.87396225,0.00013028,2]
[426584512,1782634161000,-308.64,0.00013038,2]
[426584510,1782634161000,-150.0,0.0001282,2]
[426584513,1782634161000,-392.16129688,0.00013046,2]
[426584515,1782634161000,-308.64,0.00013115,2]
[426584511,1782634161000,-17389.74603775,0.00013028,2]
[426584516,1782634161000,-231.7,0.00013115,2]
[426584517,1782634161000,-308.64,0.00013191,2]
[426584518,1782634161000,-308.64,0.00013268,2]
[426584520,1782634161000,-497.38327163,0.00013342,2]
[426584519,1782634161000,-1827.2,0.0001328,2]
[426584514,1782634161000,-158.8,0.0001305,2]
[426584522,1782634165000,-308.64,0.00013344,2]
[426584521,1782634165000,-68.65818933,0.00013342,2]
[426584523,1782634165000,-308.64,0.00013421,2]
[426584524,1782634165000,-150.0,0.00013421,2]
[426584525,1782634165000,-308.64,0.00013497,2]
[426584526,1782634165000,-53.65684109,0.00013574,2]
[426584538,1782634166000,-500.0,0.00013799,2]
[426584539,1782634166000,-500.0,0.00013799,2]
[426584536,1782634166000,-404.35175126,0.00013799,2]
[426584537,1782634166000,-296.54903417,0.00013799,2]
[426584533,1782634166000,-300.0,0.00013755,2]
[426584534,1782634166000,-500.0,0.00013799,2]
[426584527,1782634166000,-254.98315891,0.00013574,2]
[426584531,1782634166000,-193.0,0.00013755,2]
[426584532,1782634166000,-500.0,0.00013755,2]
[426584529,1782634166000,-308.64,0.0001365,2]
[426584528,1782634166000,-1827.2,0.00013596,2]
[426584540,1782634166000,-265.00867406,0.00013799,2]
[426584535,1782634166000,-500.0,0.00013799,2]
[426584541,1782634166000,-500.0,0.00013799,2]
[426584530,1782634166000,-566.04146096,0.00013746,2]
[426584543,1782634166000,-306.97446578,0.00013799,2]
[426584556,1782634166000,-614.31754598,0.000138,2]
[426584555,1782634166000,-500.0,0.00013799,2]
[426584557,1782634166000,-2944.36887861,0.000138,2]
[426584554,1782634166000,-500.0,0.00013799,2]
[426584553,1782634166000,-500.0,0.00013799,2]
[426584551,1782634166000,-500.0,0.00013799,2]
[426584542,1782634166000,-578.75613609,0.00013799,2]
[426584552,1782634166000,-500.0,0.00013799,2]
[426584550,1782634166000,-500.0,0.00013799,2]
[426584547,1782634166000,-500.0,0.00013799,2]
[426584546,1782634166000,-500.0,0.00013799,2]
[426584548,1782634166000,-613.72310746,0.00013799,2]
[426584545,1782634166000,-500.0,0.00013799,2]
[426584544,1782634166000,-500.0,0.00013799,2]
[426584549,1782634166000,-500.0,0.00013799,2]
[426584560,1782634231000,-589.01793856,0.00013376,2]
[426584561,1782634231000,-8222.64526415,0.00013376,2]
[426584559,1782634231000,-151.0,0.00013255,2]
[426584562,1782634232000,-80052.043428,0.00013376,2]
[426584563,1782634232000,-80712.1815772,0.00013376,2]
[426584606,1782634238000,-250.0,0.00013972,2]
[426584611,1782634238000,-200.0,0.00014218,2]
[426584612,1782634238000,-300.0,0.00014242,2]
[426584613,1782634238000,-301.8783989,0.00014242,2]
[426584618,1782634238000,-600.0,0.00014242,2]
[426584620,1782634238000,-604.21262527,0.00014242,2]
[426584615,1782634238000,-600.0,0.00014242,2]
[426584621,1782634238000,-250.0,0.00014242,2]
[426584623,1782634238000,-382434.47,0.00014255,2]
[426584625,1782634238000,-229.0,0.00014534,2]
[426584624,1782634238000,-452.74300174,0.00014395,2]
[426584627,1782634238000,-800.0,0.000149,5]
[426584637,1782634238000,-150.0,0.00015,2]
[426584629,1782634238000,-367.75034493,0.0001499,2]
[426584631,1782634238000,-500.0,0.00014999,2]
[426584630,1782634238000,-1183.06548016,0.00014999,5]
[426584628,1782634238000,-229.52979225,0.000149,2]
[426584633,1782634238000,-500.0,0.00014999,2]
[426584634,1782634238000,-500.0,0.00014999,2]
[426584632,1782634238000,-500.0,0.00014999,2]
[426584636,1782634238000,-505844.95288255,0.00015,2]
[426584609,1782634238000,-158.8,0.00014053,2]
[426584635,1782634238000,-500.0,0.00014999,2]
[426584639,1782634238000,-158.8,0.00015057,2]
[426584626,1782634238000,-170.3,0.00014699,2]
[426584604,1782634238000,-1827.2,0.00013912,2]
[426584594,1782634238000,-16681.20800381,0.00013846,2]
[426584607,1782634238000,-624.98,0.00014,2]
[426584582,1782634238000,-67048.10794267,0.00013376,2]
[426584581,1782634238000,-1453.55163602,0.00013376,2]
[426584584,1782634238000,-242.47460843,0.000138,2]
[426584583,1782634238000,-10000.0,0.000135,2]
[426584586,1782634238000,-150.0,0.000138,2]
[426584585,1782634238000,-152.0,0.000138,2]
[426584588,1782634238000,-200.0,0.000138,2]
[426584587,1782634238000,-150.0,0.000138,2]
[426584591,1782634238000,-288.66685276,0.00013846,2]
[426584589,1782634238000,-153.0,0.000138,2]
[426584596,1782634238000,-500.0,0.00013846,2]
[426584590,1782634238000,-160.24,0.00013811,2]
[426584597,1782634238000,-500.0,0.00013846,2]
[426584592,1782634238000,-500.0,0.00013846,2]
[426584593,1782634238000,-500.0,0.00013846,2]
[426584595,1782634238000,-500.0,0.00013846,2]
[426584638,1782634238000,-42102.31521854,0.00015,2]
[426584598,1782634238000,-512.30421207,0.00013846,2]
[426584599,1782634238000,-500.0,0.00013846,2]
[426584600,1782634238000,-500.0,0.00013846,2]
[426584608,1782634238000,-523.744796,0.00014,2]
[426584601,1782634238000,-453.43419594,0.00013846,2]
[426584605,1782634238000,-200.0,0.00013938,2]
[426584602,1782634238000,-25058.41532364,0.000139,2]
[426584603,1782634238000,-250.0,0.00013912,2]
[426584610,1782634238000,-200.0,0.00014077,2]
[426584641,1782634238000,-624.98,0.00015555,2]
[426584622,1782634238000,-740.24,0.00014255,2]
[426584643,1782634238000,-3186.84348697,0.000156,2]
[426584677,1782634238000,-151.0,0.00017462,2]
[426584678,1782634238000,-153.0,0.00017468,2]
[426584679,1782634238000,-25058.41532362,0.00017478,2]
[426584680,1782634238000,-150.0,0.00017494,2]
[426584682,1782634238000,-160.24,0.00017757,2]
[426584685,1782634238000,-1700.0,0.000179,6]
[426584689,1782634238000,-150.0,0.00018004,2]
[426584681,1782634238000,-151.0,0.00017595,2]
[426584687,1782634238000,-1212.49897966,0.00018,2]
[426584686,1782634238000,-61281.304849,0.00018,2]
[426584684,1782634238000,-500.0,0.000179,2]
[426584688,1782634238000,-166.07211896,0.00018,2]
[426584675,1782634238000,-3186.84348697,0.000174,2]
[426584690,1782634238000,-151.0,0.00018017,2]
[426584697,1782634238000,-2107.76167013,0.00018895,2]
[426584693,1782634238000,-1809.40259684,0.000181,2]
[426584692,1782634238000,-158.8,0.00018069,2]
[426584695,1782634238000,-624.98,0.00018666,2]
[426584696,1782634238000,-1194.79594469,0.00018895,2]
[426584691,1782634238000,-150.0,0.00018066,2]
[426584698,1782634238000,-152.0,0.00019059,2]
[426584701,1782634238000,-3186.84348697,0.000192,2]
[426584700,1782634238000,-20527.96,0.00019178,2]
[426584699,1782634238000,-160.0,0.00019147,2]
[426584640,1782634238000,-1517.64,0.000153,2]
[426584702,1782634238000,-25058.41532362,0.00019267,2]
[426584694,1782634238000,-151.0,0.00018266,2]
[426584669,1782634238000,-436.65,0.00016922,2]
[426584683,1782634238000,-199.5,0.0001782,2]
[426584671,1782634238000,-9999.99,0.00016922,2]
[426584642,1782634238000,-250.0,0.00015594,2]
[426584670,1782634238000,-14236.17,0.00016922,2]
[426584646,1782634238000,-160.0,0.00016,8]
[426584649,1782634238000,-389.02,0.00016121,2]
[426584647,1782634238000,-158.8,0.00016061,2]
[426584645,1782634238000,-160.24,0.00015784,2]
[426584652,1782634238000,-150.0,0.00016205,2]
[426584654,1782634238000,-213.0,0.00016205,2]
[426584658,1782634238000,-172.05,0.00016393,2]
[426584656,1782634238000,-302.46,0.00016205,2]
[426584657,1782634238000,-156.09199307,0.00016205,2]
[426584665,1782634238000,-150.99,0.00016922,2]
[426584666,1782634238000,-9999.99,0.00016922,2]
[426584644,1782634238000,-25058.41532362,0.00015689,2]
[426584660,1782634238000,-68464.26,0.00016922,2]
[426584661,1782634238000,-22933.49,0.00016922,2]
[426584673,1782634238000,-158.8,0.00017065,2]
[426584676,1782634238000,-150.0,0.00017461,2]
[426584672,1782634238000,-3554.99,0.00016922,2]
[426584668,1782634238000,-2139.69,0.00016922,2]
[426584667,1782634238000,-999.99,0.00016922,2]
[426584674,1782634238000,-624.98,0.00017111,2]
[426584662,1782634238000,-3054.71,0.00016922,2]
[426584659,1782634238000,-500.0,0.00016599,2]
[426584663,1782634238000,-9999.99,0.00016922,2]
[426584664,1782634238000,-196.72,0.00016922,4]
[426584738,1782634239000,-4468.8614,0.00020548,2]
[426584742,1782634239000,-4468.8614,0.00020548,2]
[426584744,1782634239000,-10834.84,0.00020548,2]
[426584736,1782634239000,-1124.96,0.00020548,2]
[426584733,1782634239000,-497.06333848,0.00020036,2]
[426584743,1782634239000,-4468.8614,0.00020548,2]
[426584740,1782634239000,-4468.8614,0.00020548,2]
[426584739,1782634239000,-4468.8614,0.00020548,2]
[426584745,1782634239000,-150.0,0.0002058,2]
[426584735,1782634239000,-226.497248,0.0002037,2]
[426584737,1782634239000,-4468.8614,0.00020548,2]
[426584741,1782634239000,-4468.8614,0.00020548,2]
[426584757,1782634239000,-151.0,0.00020974,2]
[426584752,1782634239000,-151.0,0.00020974,2]
[426584746,1782634239000,-150.0,0.0002058,2]
[426584750,1782634239000,-151.0,0.00020974,2]
[426584747,1782634239000,-173.51198,0.00020634,2]
[426584756,1782634239000,-151.0,0.00020974,2]
[426584754,1782634239000,-151.0,0.00020974,2]
[426584751,1782634239000,-151.0,0.00020974,2]
[426584753,1782634239000,-151.0,0.00020974,2]
[426584748,1782634239000,-151.0,0.00020974,2]
[426584755,1782634239000,-151.0,0.00020974,2]
[426584758,1782634239000,-151.0,0.00020974,2]
[426584731,1782634239000,-571.0,0.0002,2]
[426584734,1782634239000,-161.53999314,0.00020341,2]
[426584732,1782634239000,-156.86502605,0.0002,20]
[426584706,1782634239000,-156.52633102,0.00019557,2]
[426584724,1782634239000,-545.0,0.0002,2]
[426584760,1782634239000,-151.0,0.00020974,2]
[426584704,1782634239000,-213.0,0.00019452,2]
[426584703,1782634239000,-291.02,0.00019355,7]
[426584708,1782634239000,-560.57,0.00019689,2]
[426584709,1782634239000,-156.52633102,0.00019758,2]
[426584705,1782634239000,-156.52633102,0.00019457,2]
[426584707,1782634239000,-156.52633102,0.00019658,2]
[426584710,1782634239000,-172.6835402,0.00019845,2]
[426584714,1782634239000,-1255.9488366,0.00019858,2]
[426584715,1782634239000,-151.0,0.00019859,2]
[426584719,1782634239000,-500.0,0.00019999,2]
[426584711,1782634239000,-33613.3314257,0.00019845,2]
[426584730,1782634239000,-155.0,0.0002,2]
[426584712,1782634239000,-1000.0,0.00019858,2]
[426584720,1782634239000,-2973.21847166,0.0002,2]
[426584717,1782634239000,-19850.23028813,0.0001995,15]
[426584716,1782634239000,-161.28,0.00019859,2]
[426584721,1782634239000,-1499.87764736,0.0002,5]
[426584718,1782634239000,-740.24,0.00019957,2]
[426584722,1782634239000,-164.10533487,0.0002,14]
[426584723,1782634239000,-161.0,0.0002,2]
[426584725,1782634239000,-536.0,0.0002,2]
[426584727,1782634239000,-165.79776997,0.0002,2]
[426584728,1782634239000,-333.0,0.0002,2]
[426584726,1782634239000,-157.0,0.0002,2]
[426584729,1782634239000,-154.0,0.0002,2]
[426584713,1782634239000,-938.2792234,0.00019858,2]
[426584759,1782634239000,-151.0,0.00020974,2]
[426584749,1782634239000,-151.0,0.00020974,2]
[426584766,1782634239000,-151.0,0.00020974,2]
[426584798,1782634239000,-154.0,0.00022,2]
[426584796,1782634239000,-163.0,0.00022,2]
[426584803,1782634239000,-187.0,0.00022459,2]
[426584794,1782634239000,-545.0,0.00022,2]
[426584800,1782634239000,-571.0,0.00022,2]
[426584797,1782634239000,-333.0,0.00022,2]
[426584795,1782634239000,-536.0,0.00022,2]
[426584802,1782634239000,-220.134029,0.00022459,2]
[426584804,1782634239000,-1981.93,0.00022466,2]
[426584799,1782634239000,-158.23341983,0.00022,2]
[426584801,1782634239000,-160.24,0.00022,2]
[426584805,1782634239000,-2133.51,0.00022466,2]
[426584793,1782634239000,-161.0,0.00022,2]
[426584806,1782634239000,-270.27,0.00022466,2]
[426584815,1782634239000,-545.0,0.00023,2]
[426584814,1782634239000,-161.0,0.00023,2]
[426584809,1782634239000,-193.79144262,0.00022608,2]
[426584808,1782634239000,-2019.11,0.00022562,2]
[426584810,1782634239000,-3186.84348697,0.000228,2]
[426584813,1782634239000,-1020.73205346,0.00023,2]
[426584812,1782634239000,-25058.41532362,0.00022844,2]
[426584816,1782634239000,-536.0,0.00023,2]
[426584811,1782634239000,-249.0,0.0002282,2]
[426584817,1782634239000,-333.0,0.00023,2]
[426584818,1782634239000,-170.84486236,0.00023,2]
[426584761,1782634239000,-151.0,0.00020974,2]
[426584807,1782634239000,-290.93,0.00022466,2]
[426584791,1782634239000,-3188.30775716,0.00021999,2]
[426584819,1782634239000,-571.0,0.00023,2]
[426584790,1782634239000,-5000.0,0.00021918,2]
[426584792,1782634239000,-26227.38201383,0.00022,4]
[426584762,1782634239000,-151.0,0.00020974,2]
[426584765,1782634239000,-151.0,0.00020974,2]
[426584768,1782634239000,-161.0,0.00021,2]
[426584763,1782634239000,-151.0,0.00020974,2]
[426584767,1782634239000,-151.0,0.00020974,2]
[426584764,1782634239000,-151.0,0.00020974,2]
[426584769,1782634239000,-545.0,0.00021,2]
[426584772,1782634239000,-333.0,0.00021,2]
[426584771,1782634239000,-157.0,0.00021,2]
[426584774,1782634239000,-3186.84348697,0.00021,2]
[426584775,1782634239000,-155.0,0.00021,2]
[426584773,1782634239000,-154.0,0.00021,2]
[426584770,1782634239000,-536.0,0.00021,2]
[426584779,1782634239000,-219.0,0.0002109,2]
[426584789,1782634239000,-1011.52,0.00021918,2]
[426584776,1782634239000,-571.0,0.00021,2]
[426584788,1782634239000,-500.0,0.00021917,2]
[426584786,1782634239000,-188.02768302,0.00021709,2]
[426584785,1782634239000,-195.0,0.00021687,3]
[426584787,1782634239000,-378.34848744,0.000219,2]
[426584784,1782634239000,-4266.2268,0.00021395,7]
[426584782,1782634239000,-5487.53,0.0002137,2]
[426584781,1782634239000,-1009.35,0.00021273,2]
[426584780,1782634239000,-187.0,0.0002109,2]
[426584777,1782634239000,-25058.41532362,0.00021056,2]
[426584783,1782634239000,-3153.08540156,0.00021395,7]
[426584861,1782634240000,-178.98621705,0.000244,2]
[426584857,1782634240000,-163.45840102,0.00024264,2]
[426584862,1782634240000,-264.94608572,0.00024502,2]
[426584854,1782634240000,-178.98621705,0.000242,2]
[426584846,1782634240000,-333.0,0.00024,2]
[426584853,1782634240000,-517.88,0.00024174,2]
[426584859,1782634240000,-648.12381899,0.000243,2]
[426584852,1782634240000,-19239.03,0.00024174,2]
[426584851,1782634240000,-434.22,0.00024174,2]
[426584856,1782634240000,-262.39999999,0.000242,2]
[426584855,1782634240000,-189.86987818,0.000242,2]
[426584870,1782634240000,-500.0,0.00024657,2]
[426584858,1782634240000,-4727.9119605,0.000243,2]
[426584874,1782634240000,-500.0,0.00024657,2]
[426584864,1782634240000,-4727.9119605,0.000246,2]
[426584863,1782634240000,-160.24,0.00024557,7]
[426584866,1782634240000,-524.42414093,0.000246,2]
[426584867,1782634240000,-3186.84348697,0.000246,2]
[426584865,1782634240000,-648.12381899,0.000246,2]
[426584869,1782634240000,-25058.41532362,0.00024633,2]
[426584873,1782634240000,-500.0,0.00024657,2]
[426584871,1782634240000,-500.0,0.00024657,2]
[426584868,1782634240000,-154.77310123,0.00024632,20]
[426584847,1782634240000,-571.0,0.00024,2]
[426584860,1782634240000,-524.42414093,0.000243,2]
[426584848,1782634240000,-4727.9119605,0.000241,2]
[426584836,1782634240000,-152.58868124,0.00023722,2]
[426584850,1782634240000,-524.42414093,0.000241,2]
[426584872,1782634240000,-500.0,0.00024657,2]
[426584824,1782634240000,-161.01438241,0.00023719,2]
[426584828,1782634240000,-152.59519066,0.00023719,2]
[426584823,1782634240000,-167.7,0.00023518,2]
[426584821,1782634240000,-174.74688955,0.0002342,2]
[426584826,1782634240000,-152.12144036,0.00023719,2]
[426584822,1782634240000,-2210.75547544,0.000235,2]
[426584825,1782634240000,-194.57346616,0.00023719,2]
[426584820,1782634240000,-230.65841348,0.00023361,2]
[426584827,1782634240000,-183.69102486,0.00023719,2]
[426584830,1782634240000,-153.21739881,0.00023719,2]
[426584829,1782634240000,-154.23271012,0.00023719,2]
[426584844,1782634240000,-545.0,0.00024,2]
[426584831,1782634240000,-155.40641446,0.00023719,2]
[426584832,1782634240000,-184.81426354,0.00023722,2]
[426584835,1782634240000,-181.40552321,0.00023722,2]
[426584839,1782634240000,-154.64089411,0.00023722,2]
[426584833,1782634240000,-168.21899528,0.00023722,2]
[426584837,1782634240000,-151.40870172,0.00023722,2]
[426584838,1782634240000,-152.49023488,0.00023722,2]
[426584840,1782634240000,-161.41924626,0.00023722,2]
[426584841,1782634240000,-500.0,0.00023999,2]
[426584843,1782634240000,-161.0,0.00024,2]
[426584845,1782634240000,-536.0,0.00024,2]
[426584842,1782634240000,-129657.31001936,0.00024,2]
[426584849,1782634240000,-648.12381899,0.000241,2]
[426584834,1782634240000,-193.49324464,0.00023722,2]
[426584876,1782634240000,-291.04,0.00024658,2]
[426584889,1782634240000,-664.60059839,0.00024979,2]
[426584877,1782634240000,-1000.0,0.00024658,2]
[426584907,1782634240000,-232.43694919,0.00024983,2]
[426584916,1782634240000,-555.46447607,0.00025,2]
[426584909,1782634240000,-500.0,0.00024999,2]
[426584912,1782634240000,-77009.08602699,0.00025,2]
[426584908,1782634240000,-427.70567283,0.00024983,2]
[426584910,1782634240000,-500.0,0.00024999,2]
[426584911,1782634240000,-3779.63076745,0.00025,7]
[426584913,1782634240000,-55094.19955128,0.00025,2]
[426584914,1782634240000,-162.97049707,0.00025,2]
[426584917,1782634240000,-337.0,0.00025,2]
[426584926,1782634240000,-367.75034493,0.0002579,2]
[426584923,1782634240000,-4727.9119605,0.000253,2]
[426584886,1782634240000,-304.24288072,0.00024979,2]
[426584920,1782634240000,-648.12381899,0.000251,2]
[426584929,1782634240000,-500.0,0.00025799,2]
[426584921,1782634240000,-524.42414093,0.000251,2]
[426584925,1782634240000,-346.05413363,0.00025739,2]
[426584930,1782634240000,-500.0,0.00025799,2]
[426584918,1782634240000,-586.37266483,0.00025,2]
[426584919,1782634240000,-4727.9119605,0.000251,2]
[426584928,1782634240000,-500.0,0.00025799,2]
[426584924,1782634240000,-4727.9119605,0.000256,2]
[426584922,1782634240000,-157.060907,0.00025276,2]
[426584932,1782634240000,-500.0,0.00025799,2]
[426584931,1782634240000,-500.0,0.00025799,2]
[426584904,1782634240000,-309.28178822,0.00024982,2]
[426584906,1782634240000,-322.83849253,0.00024983,2]
[426584927,1782634240000,-500.0,0.00025799,2]
[426584905,1782634240000,-201.28974261,0.00024982,2]
[426584915,1782634240000,-562.48522654,0.00025,2]
[426584880,1782634240000,-524.42414093,0.000248,2]
[426584879,1782634240000,-648.12381899,0.000248,2]
[426584875,1782634240000,-500.0,0.00024657,2]
[426584882,1782634240000,-322.02876482,0.00024979,2]
[426584878,1782634240000,-4727.9119605,0.000248,2]
[426584884,1782634240000,-173.27296357,0.00024979,2]
[426584885,1782634240000,-228.10478611,0.00024979,2]
[426584883,1782634240000,-179.39664228,0.00024979,2]
[426584888,1782634240000,-305.19038132,0.00024979,2]
[426584887,1782634240000,-367.38204972,0.00024979,2]
[426584890,1782634240000,-154.76827013,0.00024979,2]
[426584881,1782634240000,-2600.0,0.000249,9]
[426584892,1782634240000,-157.09256025,0.00024979,2]
[426584900,1782634240000,-362.81104643,0.00024982,2]
[426584891,1782634240000,-308.46542023,0.00024979,2]
[426584902,1782634240000,-177.45419341,0.00024982,2]
[426584901,1782634240000,-305.17736248,0.00024982,2]
[426584899,1782634240000,-386.98648928,0.00024982,2]
[426584897,1782634240000,-369.62852708,0.00024982,2]
[426584903,1782634240000,-302.81740345,0.00024982,2]
[426584898,1782634240000,-336.43799056,0.00024982,2]
[426584896,1782634240000,-226.82760779,0.00024979,2]
[426584895,1782634240000,-155.51398183,0.00024979,2]
[426584893,1782634240000,-306.43479761,0.00024979,2]
[426584894,1782634240000,-310.81282891,0.00024979,2]
[426584955,1782634241000,-211.48592089,0.00025819,2]
[426584946,1782634241000,-288.74911,0.000258,2]
[426584953,1782634241000,-472.02568758,0.00025819,2]
[426584952,1782634241000,-159.64822018,0.00025819,2]
[426584951,1782634241000,-331.3214137,0.00025819,2]
[426584965,1782634241000,-456.36432108,0.00025819,2]
[426584956,1782634241000,-444.57506737,0.00025819,2]
[426584967,1782634241000,-222.0306946,0.00025819,2]
[426584962,1782634241000,-346.54592714,0.00025819,2]
[426584963,1782634241000,-456.20957222,0.00025819,2]
[426584959,1782634241000,-230.02974778,0.00025819,2]
[426584947,1782634241000,-288.74911,0.000258,2]
[426584966,1782634241000,-176.66070945,0.00025819,2]
[426584945,1782634241000,-288.74911,0.000258,2]
[426584935,1782634241000,-87327.25228578,0.000258,2]
[426584948,1782634241000,-288.74911,0.000258,2]
[426584943,1782634241000,-257457.70788823,0.000258,2]
[426584949,1782634241000,-151.0,0.000258,2]
[426584944,1782634241000,-4727.9119605,0.000258,2]
[426584942,1782634241000,-49293.31625778,0.000258,2]